Cogmind - Beta 9.3 @@@ ROGUE MODE // 2019.12.17 @ 09:00:39 // Winter2019/RPGLIKE Player: Someone64 Result: Destroyed by S-10 Pest with Light Assault Rifle Performance ------------- Evolutions (1) 500 Regions Visited (2) 400 Robots Destroyed (3) 15 Value Destroyed (30) 30 Prototype IDs (0) 0 Alien Tech Used (0) 0 Bonus (200) 200 TOTAL SCORE: 1145 Bonus ------- Pacifist 200 Cogmind --------- Core Integrity 0/600 Matter 247/300 Energy 99/100 System Corruption 0% Temperature Cool (0) Movement Rolling (80) Location -9/Materials Parts ------- > --- POWER (2) -------- (None) > --- PROPULSION (2) --- Wheel > --- UTILITY (2) ------ Improved Signal Interpreter Improved Signal Interpreter > --- WEAPON (1) ------- Autogun > --- INVENTORY (3) ---- (None) Peak State ------------ > --- POWER ------------ Light Ion Engine > --- PROPULSION ------- Wheel > --- UTILITY ---------- Improved Signal Interpreter Improved Signal Interpreter > --- WEAPON ----------- Autogun > --- INVENTORY -------- (None) [Rating: 8] Favorites ----------- Power Light Ion Engine Engine Light Ion Engine Propulsion Wheel Wheel Wheel Utility Improved Signal Interpreter Processor Improved Signal Interpreter Weapon Mining Laser Energy Gun Small Laser Ballistic Gun Autogun Special Weapon Mining Laser Build | -11 -10 -9 ------- Run | Scr Mat Mat Slots Evolved 3 | . . 3 Power 1 | . . 1 Propulsion 1 | . . 1 Utility 1 | . . 1 Weapon . | . . . Parts Attached 7 | 3 1 3 Power 1 | 1 . . Engine 1 | 1 . . Core . | . . . Reactor . | . . . Propulsion 1 | 1 . . Treads . | . . . Leg . | . . . Wheel 1 | 1 . . Hover . | . . . Flight . | . . . Utility 2 | . . 2 Device . | . . . Storage . | . . . Processor 2 | . . 2 Hackware . | . . . Protection . | . . . Artifact . | . . . Weapon 3 | 1 1 1 Energy Gun 1 | 1 . . Energy Cannon . | . . . Ballistic Gun 1 | . . 1 Ballistic Cannon . | . . . Launcher . | . . . Special Weapon 1 | . 1 . Impact Weapon . | . . . Slashing Weapon . | . . . Piercing Weapon . | . . . Special Melee Weapon . | . . . Unidentified Prototypes . | . . . Parts Lost 2 | . . 2 Power 1 | . . 1 Propulsion . | . . . Utility . | . . . Weapon 1 | . . 1 Highest Loss Streak 2 | . . 2 Average Slot Usage (%) 60 | . 75 50 Engine 18 | . 25 14 Wheel 18 | . 25 14 Processor 4 | . . 8 Energy Gun 1 | . 3 . Ballistic Gun 1 | . . 2 Special Weapon 15 | . 21 11 Naked Turns . | . . . Heaviest Build 4 | 4 4 4 Greatest Support 10 | 10 10 10 Greatest Overweight (x) . | . . . Average Overweight (x) . | . . . Largest Inventory Capacity 3 | . . 3 Average Capacity 1 | . . 3 Most Carried . | . . . Average Carried . | . . . Final Capacity 3 | . . 3 Final Carried . | . . . Class Distribution -------------------- 100% | Mutant Dominant Class ---------------- Mutant | -10/Materials Mutant | -9/Materials Resources | -11 -10 -9 ----------- Run | Scr Mat Mat Matter Collected 240 | 230 10 . Remotely . | . . . Salvage Created . | . . . Parts 2 | . . 2 Haulers Intercepted . | . . . Recyclers Shooed . | . . . Parts Field Recycled . | . . . Retrieved Matter . | . . . Parts Self-Destructed . | . . . Prevented . | . . . Kills | -11 -10 -9 ------- Run | Scr Mat Mat Combat Hostiles Destroyed 3 | . . 3 Guns 2 | . . 2 Cannons 1 | . . 1 Classes Destroyed 1 | . . 1 Swarmer 3 | . . 3 Best Kill Streak 2 | . . 2 Combat Bots Only 2 | . . 2 Max Kills in Single Turn 1 | . . 1 Gunslinging . | . . . Exploded . | . . . Melee . | . . . Uniques/NPCs Destroyed . | . . . Combat | -11 -10 -9 -------- Run | Scr Mat Mat Damage Taken 721 | . . 721 Core 603 | . . 603 Absorbed by Shields . | . . . Redirected to Core 355 | . . 355 Core Remaining (%) 100 | 100 100 . Volleys Fired 14 | . . 14 Largest 1 | . . 1 Hottest 100 | . . 100 Shots Fired 14 | . . 14 Gun 9 | . . 9 Cannon . | . . . Launcher . | . . . Special 5 | . . 5 Kinetic 9 | . . 9 Thermal 5 | . . 5 Explosive . | . . . Electromagnetic . | . . . Robot Hit Streak 2 | . . 2 Robot Miss Streak 5 | . . 5 Penetration Max . | . . . Secondary Targets . | . . . Shots Hit Robots 3 | . . 3 Core Hits 3 | . . 3 Critical Hits . | . . . Critical Kills . | . . . Critical Parts Destroyed . | . . . Melee Attacks . | . . . Impact . | . . . Slashing . | . . . Piercing . | . . . Sneak Attacks . | . . . Combat Hostiles . | . . . Follow-up Attacks . | . . . Damage Inflicted 107 | . . 107 Guns 81 | . . 81 Cannons . | . . . Explosions . | . . . Melee . | . . . Ramming 2 | . . 2 Kinetic 81 | . . 81 Thermal 24 | . . 24 Explosive . | . . . Electromagnetic . | . . . Impact . | . . . Slashing . | . . . Piercing . | . . . Highest Corruption . | . . . Average Corruption . | . . . Corruption Purged . | . . . Overload Shots . | . . . Overflow Damage . | . . . Projectiles . | . . . Explosions . | . . . Melee . | . . . Knockbacks . | . . . Impact . | . . . Kinetic . | . . . Secondary . | . . . Self-Inflicted Damage 1 | . . 1 Shots . | . . . Rammed 1 | . . 1 Targets Rammed 1 | . . 1 Kicked . | . . . Crushed . | . . . Highest Temperature 120 | . . 120 Average Temperature 51 | . . 51 Received Heat Transfer . | . . . Siege Activations . | . . . Robots Corrupted . | . . . Combat Hostiles . | . . . Parts Fried . | . . . Impact Corruptions . | . . . Robots Melted . | . . . Combat Hostiles . | . . . Parts Melted . | . . . Heat Transferred 50 | . . 50 Parts Sabotaged . | . . . Parts Stolen . | . . . Parts Stripped . | . . . Power Chain Reactions . | . . . Missiles Intercepted . | . . . Alert | -11 -10 -9 ------- Run | Scr Mat Mat Peak Influence 126 | . 20 126 Average Influence 27 | . 16 43 Maximum Alert Level . | . . . Low Security (%) 100 | 100 100 100 Level 1 . | . . . Level 2 . | . . . Level 3 . | . . . Level 4 . | . . . Level 5 . | . . . High Security . | . . . Max Security . | . . . Squads Dispatched . | . . . Investigation . | . . . Extermination . | . . . Reinforcement . | . . . Assault . | . . . Garrison . | . . . Intercept . | . . . Construction Impeded . | . . . Haulers Reinforced . | . . . Stealth | -11 -10 -9 --------- Run | Scr Mat Mat Distress Signals . | . . . Communications Jammed . | . . . Distress Signals . | . . . Times Spotted 16 | . 1 15 Peak Tracking Total 14 | . 1 14 Tactical Retreats . | . . . Traps | -11 -10 -9 ------- Run | Scr Mat Mat Traps Triggered . | . . . Indirectly . | . . . Trap Hack Attempts . | . . . Triggered . | . . . Disarmed . | . . . Reprogrammed . | . . . Reused . | . . . Traps Extracted . | . . . Installed . | . . . Triggered . | . . . Machines | -11 -10 -9 ---------- Run | Scr Mat Mat Machines Disabled . | . . . Max in Single Turn . | . . . Machines Sabotaged . | . . . Garrisons Compromised . | . . . Overloaded Fab Kills . | . . . Fab Network Shutdowns . | . . . Hacking | -11 -10 -9 --------- Run | Scr Mat Mat Machines Accessed 3 | . 1 2 Terminals 3 | . 1 2 Fabricators . | . . . Repair Stations . | . . . Recycling Units . | . . . Scanalyzers . | . . . Garrison Access . | . . . Total Hacks 12 | . 4 8 Successful 5 | . 1 4 Failed 7 | . 3 4 Catastrophic . | . . . Database Lockouts . | . . . Manual . | . . . Terminals 12 | . 4 8 Fabricators . | . . . Repair Stations . | . . . Recycling Units . | . . . Scanalyzers . | . . . Garrison Access . | . . . Terminal Hacks 5 | . 1 4 Record 1 | . . 1 Emergency Access Points 1 | . . 1 Locate Traps 1 | . . 1 Recall Assault 1 | . . 1 Zone Layout 1 | . 1 . Fabricator Hacks . | . . . Repair Station Hacks . | . . . Recycling Unit Hacks . | . . . Scanalyzer . | . . . Garrison Access Hacks . | . . . Unauthorized Hacks . | . . . Terminals . | . . . Fabricators . | . . . Repair Stations . | . . . Recycling Units . | . . . Scanalyzers . | . . . Garrison Access . | . . . Data Cores Recovered . | . . . Used . | . . . Hacking Detections 2 | . 1 1 Full Trace Events . | . . . Feedback Events . | . . . Feedback Blocked . | . . . Robot Schematics Acquired . | . . . Robots Built . | . . . Matter . | . . . Time . | . . . Total Robot Build Rating . | . . . Part Schematics Acquired . | . . . Parts Built . | . . . Matter . | . . . Time . | . . . Total Part Build Rating . | . . . Parts Repaired . | . . . Time . | . . . Parts Recycled . | . . . Recycled Matter . | . . . Retrieved Matter . | . . . Retrieved Components . | . . . Parts Scanalyzed . | . . . Part Schematics Acquired . | . . . Parts Damaged . | . . . Bothacking | -11 -10 -9 ------------ Run | Scr Mat Mat Used RIF Installer . | . . . Robots Hacked . | . . . Non-combat . | . . . Combat . | . . . Robot Hacks Applied . | . . . Relay Couplers Released . | . . . Robots Rewired . | . . . Allies Hacked . | . . . Hacks Repelled . | . . . Allies | -11 -10 -9 -------- Run | Scr Mat Mat Total Allies . | . . . Largest Group . | . . . Highest-Rated Group . | . . . Highest-Rated Ally . | . . . Total Orders . | . . . Ally Attacks . | . . . Total Damage . | . . . Kills . | . . . Allies Corrupted . | . . . Allies Melted . | . . . Intel | -11 -10 -9 ------- Run | Scr Mat Mat Robot Analysis Total . | . . . Derelict Logs Recovered . | . . . Drone Launches . | . . . Drone Recoveries . | . . . Exploration | -11 -10 -9 ------------- Run | Scr Mat Mat Turns Passed 238 | 34 82 122 Spaces Moved 236 | 45 95 96 Core 19 | 19 . . Treads . | . . . Legs . | . . . Wheels 217 | 26 95 96 Hover . | . . . Flight . | . . . Fastest Speed 50 | 50 80 80 Average Speed 77 | 67 80 80 Slowest Speed 80 | 80 80 80 Overloaded Moves . | . . . Propulsion Burnouts . | . . . Robots Hopped . | . . . Cave-ins Triggered . | . . . Exploration Rate (%) 14 | 4 21 18 Regions Visited 2 Branch Regions . Pre-discovered Areas . | . . . Known Exits Taken . | . . . Unknown Exits Taken 2 | 1 1 . Scrap Searched . | . . . Spaces Dug . | . . . Terrain Destroyed 2 | . . 2 Melee . | . . . Projectile 2 | . . 2 AOE . | . . . Actions | -11 -10 -9 --------- Run | Scr Mat Mat Total 265 | 47 100 118 Wait 8 | . 4 4 Move 234 | 44 94 96 Hop . | . . . Pick Up . | . . . Fast Attach 7 | 3 1 3 Attach . | . . . Detach . | . . . Swap . | . . . Drop 1 | . 1 . Fire 14 | . . 14 Melee . | . . . Ram 1 | . . 1 Kick . | . . . Crush . | . . . Escape Stasis . | . . . Rewire . | . . . Trap . | . . . Miscellaneous . | . . . Route ------- -11/Scrapyard -10/Materials -9/Materials History --------- Turn | Location | Event 12 | -11/Scrapyard | Discovered new exit (range 15) 35 | -11/Scrapyard | Entered Materials 99 | -10/Materials | Discovered new exit (range 16) 117 | -10/Materials | Entered another Materials area 117 | -9/Materials | Upgraded with Power slot (x1) 117 | -9/Materials | Upgraded with Propulsion slot (x1) 117 | -9/Materials | Upgraded with Utility slot (x1) 119 | -9/Materials | Reached level 2 196 | -9/Materials | Core integrity fell below 50% 227 | -9/Materials | Core integrity fell below 20% 239 | -9/Materials | Destroyed by S-10 Pest with Light Assault Rifle Last Messages --------------- 00206_ Connecting with Terminal... >>Recall(Assault) Establishing remote squad link... No tasked assault squads found. >>Traps(Locate) Found 4 traps in 1 array: 4x Blade Trap Map updated. 00213_ Mining Laser destroyed. 00216_ K-01 Serf collects debris. 00217_ Acquired Autogun. 00219_ S-10 Pest destroyed. 00221_ K-01 Serf collects debris. 00223_ R-06 Scavenger collects Lgt. Assault Rifle. 00230_ S-10 Pest destroyed. 00230_ K-01 Serf collects debris. 00230_ R-06 Scavenger collects Lgt. Assault Rifle. 00234_ Lgt. Ion Engine destroyed. 00235_ K-01 Serf collects debris. 00236_ Slammed into S-10 Pest. Map ----- +----------------------------------------------------+ | ?????????????????????????# """ # #??? | | ?????????????????????????# # #??? | | ?????????????????????????# # #??? | | ?????????????????????????######## #??? | | ???????????????????????????###### +??? | | ???????????????????????????# ##+#??? | | ???????????????????????????# ##?????? | | ?????????????????o?????????# #??????? | | ????????????????????######## #??????? | | ????????????????????# ######## #??????? | | ????????????????????# #??????# #??????? | | ?????????????????Y??# #??????# #??????? | | ????????????????????# ########/##?????? | | ????????????????????# # #?????? | | ????????????????#???# # #?????? | | ????????????????? ### # #?????? | | ?????????????????? # # !! #?????? | | ??????????????????^^+ # !! #?????? | | ??????????????????lk#s # !!! #?????? | | ?????k??????????????# # #?????? | | ????????????g???????# s # k #?????? | | ????????????????????# ######/####?????? | | ?????# ##### #########/######## #######+ | | ?????# sss s s | | ?????# rr T | | ?????# @ s """ | | ????????#####+####+############ = "R" ? | | ????Y??????????? ???????????##### " " ? | | ??????????????? ????????????????? ? | | ??????????????# ?????????????????? | | ??????????????# ??????????????????? | | ??????????????#????????????????????? """ | | ???????????????????????????????????? """ | | ???????????????????????????????????? "??? | | ???????????????????????????????????? "???? | | ????????????????????????????????????? ????? | | ???????????????????Y????????????????? ?????? | | ???????????????????????????????????????????? | | ???????????????????????????????????????????? | | ???????????????????????????????????????????? | | ???????????????????????????????????????????? | | ???????????????????????????????????????????? | | ???????????????????????????????????????????? | | ???????????????????????????????????????????? | | ???????????????????????????????????????????? | | ???????????????????????????????????????????? | | ???????????????????????????????????????????? | | ???????????????????????????????????????????? | | ???????????????????????????????????????????? | | ???????????????????????????????????????????? | +----------------------------------------------------+ Best States ------------- Heat Dissipation 25 Energy Generation 10 Energy Capacity 125 Matter Stores 300 Matter Capacity 300 Sight Range 16 Robot Scan Range 18 Terrain Scan Density 10 Evasion (%) 50 Item Schematics ----------------- None Robot Schematics ------------------ None Fabricated ------------ Nothing Alien Tech Used ----------------- None Achievements -------------- None Challenges ------------ None RPGLIKE | -11 -10 -9 --------- Run | Scr Mat Mat Levels Raised 1 | . . 1 XP Earned 4995 | 3000 100 1895 XP Spent 4350 | . . 4350 Upgrades 15 | . . 15 Power Slot 1 | . . 1 Propulsion Slot 1 | . . 1 Utility Slot 1 | . . 1 Inventory Capacity 3 | . . 3 Sensor Range 9 | . . 9 Protomatter Created 35 | . . 35 Protomatter Decayed . | . . . Game ------ Seed ArcReactionAutogun Manual? 0 Play Time 00:09:54 Cumulative 5.6 hours Start 2019.12.17 @ 08:48:33 End 2019.12.17 @ 09:00:39 Sessions 1 Manual Loads 0 Difficulty Rogue Special Mode Winter2019/RPGLIKE Game No. 20 Rogue 20 Adventurer 0 Explorer 0 Win Type - Total 0 Types 0/0/0/0/0/0/0 Lore% 6 Gallery% 17 Achievement% 14 Wizard Run 0 Options --------- ASCII 0 Keyboard 0 Movement Numpad Keybinds 0 Fullscreen 2 Font 16/Cog Map View 76x50 Tactical HUD 1 Map Filters NONE Filters NONE Steam 1 RUN: 4402e9ae-6391-408b-a1cb-b45fadf3982f